[Event "Orlicka sachovnice 2023"]
[Site "Usti nad Orlici, Czech Republic"]
[Date "2023.05.06"]
[Round "5.3"]
[White "Seidl, Vaclav"]
[Black "Vuova, Karolina"]
[Result "1-0"]
[TimeControl "12 min + 3 s"]
[WhiteElo "1373"]
[BlackElo "1300"]

1. e4 {[%clk 00:12:04]} {[%emt 00:00:01]} e5 {[%clk 00:12:05]} {[%emt
00:00:01]} 2. Nc3 {[%clk 00:12:06]} Nc6 {[%clk 00:12:06]} {[%emt 00:00:02]} 3.
Bc4 {[%clk 00:12:07]} {[%emt 00:00:01]} Bc5 {[%clk 00:12:07]} {[%emt 00:00:02]}
4. Qg4 {[%clk 00:12:09]} {[%emt 00:00:01]} Qf6 {[%clk 00:12:00]} {[%emt
00:00:10]} 5. Nd5 {[%clk 00:12:09]} {[%emt 00:00:04]} Qxf2+ {[%clk 00:11:59]}
{[%emt 00:00:02]} 6. Kd1 {[%clk 00:12:11]} g6 {[%clk 00:10:00]} {[%emt
00:02:04]} 7. Nxc7+ {[%clk 00:12:10]} {[%emt 00:00:04]} Kd8 {[%clk 00:10:02]}
{[%emt 00:00:01]} 8. Nxa8 {[%clk 00:12:11]} {[%emt 00:00:02]} d6 {[%clk
00:09:57]} {[%emt 00:00:08]} 9. Qg3 {[%clk 00:11:36]} {[%emt 00:00:36]} Qxg3
{[%emt 00:01:17]} 10. hxg3 {[%clk 00:11:33]} {[%emt 00:00:03]} Bg4+ {[%clk
00:08:48]} {[%emt 00:00:03]} 11. Nf3 {[%clk 00:11:34]} {[%emt 00:00:02]} Nf6
{[%clk 00:08:32]} {[%emt 00:00:19]} 12. d3 {[%clk 00:11:34]} {[%emt 00:00:03]}
Nd4 {[%clk 00:08:24]} {[%emt 00:00:10]} 13. Rf1 {[%clk 00:11:26]} {[%emt
00:00:11]} Nh5 {[%clk 00:08:00]} {[%emt 00:00:27]} 14. c3 {[%clk 00:09:48]}
{[%emt 00:01:42]} Ne6 {[%clk 00:07:22]} {[%emt 00:00:40]} 15. Kc2 {[%clk
00:08:14]} {[%emt 00:01:37]} Nxg3 {[%clk 00:07:13]} {[%emt 00:00:12]} 16. Bg5+
{[%clk 00:07:46]} {[%emt 00:00:32]} Nxg5 {[%clk 00:05:48]} {[%emt 00:01:28]} 17.
Nxg5 {[%clk 00:07:47]} {[%emt 00:00:02]} Nxf1 {[%clk 00:04:05]} {[%emt
00:01:46]} 18. Nxf7+ {[%clk 00:07:46]} {[%emt 00:00:04]} Ke7 {[%clk 00:03:39]}
{[%emt 00:00:29]} 19. Nxh8 {[%clk 00:07:47]} {[%emt 00:00:01]} Ne3+ {[%clk
00:03:37]} {[%emt 00:00:06]} 20. Kd2 {[%clk 00:07:46]} {[%emt 00:00:03]} Nxc4+
{[%clk 00:03:32]} {[%emt 00:00:08]} 21. dxc4 {[%clk 00:07:48]} {[%emt
00:00:02]} 1-0

[Event "Orlicka sachovnice 2023"]
[Site "Usti nad Orlici, Czech Republic"]
[Date "2023.05.06"]
[Round "5.4"]
[White "Kvapil, Paul"]
[Black "Sorf, Filip"]
[Result "1-0"]
[TimeControl "12 min + 3 s"]
[WhiteElo "1279"]
[BlackElo "1513"]

1. c4 {[%clk 00:11:59]} {[%emt 00:00:07]} c5 {[%clk 00:12:02]} {[%emt
00:00:04]} 2. Nc3 {[%clk 00:11:58]} {[%emt 00:00:04]} Nf6 {[%clk 00:12:03]}
{[%emt 00:00:02]} 3. Nf3 {[%clk 00:11:55]} {[%emt 00:00:06]} Nc6 {[%clk
00:12:04]} {[%emt 00:00:03]} 4. e3 {[%clk 00:11:32]} {[%emt 00:00:25]} e6
{[%clk 00:11:59]} {[%emt 00:00:09]} 5. d4 {[%clk 00:11:20]} {[%emt 00:00:15]}
cxd4 {[%clk 00:11:59]} {[%emt 00:00:02]} 6. exd4 {[%clk 00:11:11]} {[%emt
00:00:12]} d5 {[%clk 00:12:00]} {[%emt 00:00:02]} 7. Bf4 {[%clk 00:10:24]}
{[%emt 00:00:48]} Bb4 {[%clk 00:11:47]} {[%emt 00:00:17]} 8. a3 {[%clk
00:09:23]} {[%emt 00:01:05]} Be7 {[%clk 00:11:33]} {[%emt 00:00:17]} 9. c5
{[%clk 00:08:32]} {[%emt 00:00:54]} Bd7 {[%clk 00:11:08]} {[%emt 00:00:28]} 10.
Bd3 {[%clk 00:08:02]} {[%emt 00:00:32]} a6 {[%clk 00:10:46]} {[%emt 00:00:26]}
11. b4 {[%clk 00:07:38]} {[%emt 00:00:28]} b5 {[%clk 00:09:39]} {[%emt
00:01:10]} 12. O-O {[%clk 00:06:50]} {[%emt 00:00:51]} O-O {[%clk 00:09:32]}
{[%emt 00:00:09]} 13. Qc2 {[%clk 00:06:10]} {[%emt 00:00:43]} h6 {[%clk
00:09:18]} {[%emt 00:00:18]} 14. Qb2 {[%clk 00:05:41]} {[%emt 00:00:31]} Re8
{[%clk 00:06:49]} {[%emt 00:02:32]} 15. Rfe1 {[%clk 00:05:21]} {[%emt
00:00:23]} Nh5 {[%clk 00:06:21]} {[%emt 00:00:31]} 16. Be5 {[%clk 00:04:01]}
{[%emt 00:01:20]} Bf6 {[%clk 00:05:41]} {[%emt 00:00:47]} 17. Ne2 {[%clk
00:02:43]} {[%emt 00:01:21]} Bxe5 {[%clk 00:05:00]} {[%emt 00:00:43]} 18. dxe5
{[%clk 00:02:21]} {[%emt 00:00:26]} f6 {[%clk 00:03:32]} {[%emt 00:01:30]} 19.
Ned4 {[%clk 00:02:00]} {[%emt 00:00:24]} fxe5 {[%clk 00:02:22]} {[%emt
00:01:14]} 20. Nxc6 {[%clk 00:01:40]} {[%emt 00:00:23]} Bxc6 {[%clk 00:02:07]}
{[%emt 00:00:17]} 21. Nxe5 {[%clk 00:01:39]} {[%emt 00:00:04]} Qc7 {[%clk
00:01:25]} {[%emt 00:00:45]} 22. Bg6 {[%clk 00:01:21]} {[%emt 00:00:21]} Nf6
{[%clk 00:00:41]} {[%emt 00:00:47]} 23. Bxe8 {[%clk 00:01:22]} {[%emt
00:00:02]} Rxe8 {[%clk 00:00:44]} {[%emt 00:00:01]} 24. Re2 {[%clk 00:01:11]}
{[%emt 00:00:15]} Rd8 {[%clk 00:00:30]} {[%emt 00:00:17]} 25. Rae1 {[%clk
00:01:08]} {[%emt 00:00:06]} Re8 {[%clk 00:00:20]} {[%emt 00:00:13]} 26. h3
{[%clk 00:00:52]} {[%emt 00:00:18]} Bd7 {[%clk 00:00:17]} {[%emt 00:00:06]} 27.
Re3 {[%clk 00:00:27]} {[%emt 00:00:28]} Ne4 {[%emt 00:00:12]} 28. Nxd7 {[%clk
00:00:20]} {[%emt 00:00:09]} Qxd7 {[%emt 00:00:02]} 29. Rxe4 {[%clk 00:00:17]}
{[%emt 00:00:06]} dxe4 {[%clk 00:00:12]} {[%emt 00:00:03]} 30. Rxe4 {[%clk
00:00:19]} Rd8 {[%clk 00:00:11]} {[%emt 00:00:05]} 31. Re2 {[%clk 00:00:12]}
{[%emt 00:00:09]} Qc7 {[%clk 00:00:13]} {[%emt 00:00:03]} 32. Re1 {[%clk
00:00:10]} {[%emt 00:00:04]} Qf7 {[%clk 00:00:09]} {[%emt 00:00:06]} 33. Qe2
{[%clk 00:00:10]} {[%emt 00:00:04]} Re8 {[%clk 00:00:10]} {[%emt 00:00:01]} 34.
Qe5 {[%clk 00:00:09]} {[%emt 00:00:04]} Qd7 {[%clk 00:00:09]} {[%emt 00:00:05]}
35. Qd6 {[%clk 00:00:10]} {[%emt 00:00:02]} 1-0

[Event "Orlicka sachovnice 2023"]
[Site "Usti nad Orlici, Czech Republic"]
[Date "2023.05.06"]
[Round "5.5"]
[White "Findejs, David"]
[Black "Knizner, Michal"]
[Result "1-0"]
[TimeControl "12 min + 3 s"]
[WhiteElo "1378"]
[BlackElo "1152"]

1. d4 {[%clk 00:12:05]} d5 {[%clk 00:12:05]} {[%emt 00:00:01]} 2. c4 {[%clk
00:12:05]} {[%emt 00:00:02]} e6 {[%clk 00:12:07]} {[%emt 00:00:02]} 3. Nf3
{[%clk 00:12:06]} {[%emt 00:00:02]} Nf6 {[%clk 00:11:56]} {[%emt 00:00:14]} 4.
Nc3 {[%clk 00:12:07]} {[%emt 00:00:02]} Bb4 {[%clk 00:11:57]} {[%emt 00:00:03]}
5. Bg5 {[%clk 00:12:09]} h6 {[%clk 00:11:52]} {[%emt 00:00:08]} 6. Bxf6 {[%clk
00:12:08]} {[%emt 00:00:03]} Qxf6 {[%clk 00:11:52]} {[%emt 00:00:03]} 7. e3
{[%clk 00:12:00]} {[%emt 00:00:12]} Nc6 {[%clk 00:11:26]} {[%emt 00:00:30]} 8.
cxd5 {[%clk 00:11:40]} {[%emt 00:00:22]} exd5 {[%clk 00:11:24]} {[%emt
00:00:04]} 9. Bd3 {[%clk 00:11:41]} {[%emt 00:00:02]} Bg4 {[%clk 00:11:14]}
{[%emt 00:00:14]} 10. O-O {[%clk 00:11:36]} {[%emt 00:00:07]} Bxf3 {[%clk
00:10:49]} {[%emt 00:00:29]} 11. Qxf3 {[%clk 00:11:37]} {[%emt 00:00:02]} Qxf3
{[%clk 00:10:49]} {[%emt 00:00:02]} 12. gxf3 {[%clk 00:11:39]} {[%emt
00:00:02]} O-O {[%clk 00:10:46]} {[%emt 00:00:06]} 13. Nxd5 {[%clk 00:11:40]}
{[%emt 00:00:02]} Ba5 {[%clk 00:10:25]} {[%emt 00:00:24]} 14. Rac1 {[%clk
00:11:06]} {[%emt 00:00:35]} Rad8 {[%clk 00:10:14]} {[%emt 00:00:14]} 15. Nc3
{[%clk 00:10:23]} {[%emt 00:00:48]} f5 {[%clk 00:08:59]} {[%emt 00:01:17]} 16.
a3 {[%clk 00:10:12]} {[%emt 00:00:15]} f4 {[%clk 00:08:42]} {[%emt 00:00:20]}
17. b4 {[%clk 00:10:07]} {[%emt 00:00:08]} Bb6 {[%clk 00:08:34]} {[%emt
00:00:11]} 18. b5 {[%clk 00:09:02]} {[%emt 00:01:08]} Ne5 {[%clk 00:07:38]}
{[%emt 00:00:58]} 19. Bc2 {[%clk 00:07:59]} {[%emt 00:01:06]} Nxf3+ {[%clk
00:07:32]} {[%emt 00:00:09]} 20. Kg2 {[%clk 00:07:59]} {[%emt 00:00:04]} Nh4+
{[%clk 00:07:27]} {[%emt 00:00:08]} 21. Kh3 {[%clk 00:07:35]} {[%emt 00:00:20]}
g5 {[%clk 00:06:10]} {[%emt 00:01:27]} 22. exf4 {[%clk 00:06:36]} {[%emt
00:01:02]} Rxf4 {[%clk 00:05:42]} {[%emt 00:00:30]} 23. Ne2 {[%clk 00:06:36]}
{[%emt 00:00:03]} Rf3+ {[%clk 00:05:15]} {[%emt 00:00:30]} 24. Kg4 {[%clk
00:05:22]} {[%emt 00:01:18]} Bxd4 {[%clk 00:04:47]} {[%emt 00:00:30]} 25. Rfd1
{[%clk 00:03:57]} {[%emt 00:01:28]} Bf6 {[%clk 00:03:57]} {[%emt 00:00:54]} 26.
Rxd8+ {[%clk 00:02:54]} {[%emt 00:01:06]} Bxd8 {[%clk 00:03:59]} {[%emt
00:00:02]} 27. Be4 {[%emt 00:00:09]} Rxf2 {[%clk 00:03:39]} {[%emt 00:00:15]}
28. Ng3 {[%clk 00:02:53]} {[%emt 00:00:05]} Rxh2 {[%clk 00:02:47]} {[%emt
00:00:54]} 29. Bd5+ {[%clk 00:02:47]} {[%emt 00:00:10]} Kg7 {[%clk 00:02:27]}
{[%emt 00:00:23]} 30. Rf1 {[%clk 00:02:21]} {[%emt 00:00:30]} Bf6 {[%emt
00:00:49]} 31. Nh5+ {[%clk 00:02:19]} {[%emt 00:00:04]} Kh8 {[%clk 00:01:18]}
{[%emt 00:00:27]} 32. Rxf6 {[%clk 00:01:59]} {[%emt 00:00:23]} Rd2 {[%clk
00:00:42]} {[%emt 00:00:38]} 33. Rxh6# {[%clk 00:12:03]} {[%emt 00:00:19]} 1-0

[Event "Orlicka sachovnice 2023"]
[Site "Usti nad Orlici, Czech Republic"]
[Date "2023.05.06"]
[Round "5.6"]
[White "Kubicek, Ondrej"]
[Black "Trejtnar, Matej"]
[Result "1-0"]
[TimeControl "12 min + 3 s"]
[WhiteElo "1119"]
[BlackElo "1378"]

1. e4 {[%clk 00:12:04]} {[%emt 00:00:01]} e5 {[%clk 00:12:04]} {[%emt
00:00:02]} 2. Nc3 {[%clk 00:12:05]} {[%emt 00:00:03]} Nc6 {[%clk 00:12:05]}
{[%emt 00:00:02]} 3. Bc4 {[%clk 00:12:05]} {[%emt 00:00:03]} d6 {[%clk
00:11:53]} {[%emt 00:00:15]} 4. d3 {[%clk 00:12:02]} {[%emt 00:00:05]} Nf6
{[%clk 00:11:49]} {[%emt 00:00:07]} 5. f4 {[%clk 00:12:01]} {[%emt 00:00:05]}
Be7 {[%clk 00:10:07]} {[%emt 00:01:45]} 6. Nf3 {[%clk 00:11:45]} {[%emt
00:00:18]} Bg4 {[%clk 00:09:29]} {[%emt 00:00:42]} 7. O-O {[%clk 00:11:35]}
{[%emt 00:00:13]} Nd4 {[%clk 00:08:57]} {[%emt 00:00:35]} 8. Qd2 {[%clk
00:09:25]} {[%emt 00:02:13]} exf4 {[%clk 00:07:02]} {[%emt 00:01:58]} 9. Nxd4
{[%clk 00:09:07]} {[%emt 00:00:20]} Nh5 {[%clk 00:05:28]} {[%emt 00:01:37]} 10.
h3 {[%clk 00:07:27]} {[%emt 00:01:44]} Bd7 {[%clk 00:04:41]} {[%emt 00:00:50]}
11. g4 {[%clk 00:06:39]} {[%emt 00:00:50]} Nf6 {[%clk 00:03:21]} {[%emt
00:01:23]} 12. Qxf4 {[%clk 00:06:01]} {[%emt 00:00:41]} h6 {[%clk 00:02:23]}
{[%emt 00:01:01]} 13. Qe3 {[%clk 00:04:29]} {[%emt 00:01:37]} g6 {[%clk
00:01:54]} {[%emt 00:00:32]} 14. e5 {[%clk 00:03:51]} {[%emt 00:00:40]} Ng8
{[%clk 00:00:55]} {[%emt 00:01:02]} 15. Bxf7+ {[%clk 00:03:25]} {[%emt
00:00:29]} Kf8 {[%clk 00:00:52]} {[%emt 00:00:06]} 16. Ne6+ {[%clk 00:03:20]}
{[%emt 00:00:08]} Bxe6 {[%clk 00:00:53]} {[%emt 00:00:02]} 17. Bxe6+ {[%clk
00:03:21]} {[%emt 00:00:02]} Ke8 {[%emt 00:00:30]} 18. Bxg8 {[%clk 00:03:17]}
{[%emt 00:00:01]} Rxg8 {[%emt 00:00:17]} 19. exd6 {[%emt 00:00:04]} Qxd6 {[%emt
00:00:26]} 20. Ne4 {[%emt 00:00:22]} Qc6 {[%emt 00:00:10]} 21. Nf6+ {[%clk
00:02:32]} {[%emt 00:00:02]} Kd8 {[%clk 00:00:11]} {[%emt 00:00:06]} 22. Nxg8
{[%clk 00:02:29]} {[%emt 00:00:06]} Bc5 {[%clk 00:00:11]} {[%emt 00:00:02]} 23.
d4 {[%clk 00:02:07]} {[%emt 00:00:26]} Bb6 {[%clk 00:00:04]} {[%emt 00:00:10]}
24. Qe7+ {[%clk 00:02:03]} {[%emt 00:00:06]} Kc8 {[%emt 00:00:12]} 25. Rf7
{[%emt 00:00:07]} 1-0

[Event "Orlicka sachovnice 2023"]
[Site "Usti nad Orlici, Czech Republic"]
[Date "2023.05.06"]
[Round "5.7"]
[White "Cimprich, Lukas"]
[Black "Horacek, Jan"]
[Result "1-0"]
[TimeControl "12 min + 3 s"]
[WhiteElo "1365"]
[BlackElo "1168"]

1. e4 {[%clk 00:12:05]} e5 {[%clk 00:12:04]} {[%emt 00:00:02]} 2. Nf3 {[%clk
00:12:05]} {[%emt 00:00:03]} Nc6 {[%clk 00:12:06]} {[%emt 00:00:02]} 3. d4
{[%clk 00:12:07]} exd4 {[%clk 00:12:08]} {[%emt 00:00:03]} 4. Bc4 {[%clk
00:12:08]} h6 {[%clk 00:12:06]} {[%emt 00:00:05]} 5. O-O {[%clk 00:12:05]}
{[%emt 00:00:07]} Bc5 {[%clk 00:12:02]} {[%emt 00:00:07]} 6. c3 {[%clk
00:11:52]} {[%emt 00:00:17]} dxc3 {[%clk 00:12:02]} {[%emt 00:00:02]} 7. Nxc3
{[%clk 00:11:54]} {[%emt 00:00:02]} d6 {[%clk 00:11:56]} {[%emt 00:00:09]} 8.
h3 {[%clk 00:11:04]} {[%emt 00:00:52]} Nf6 {[%clk 00:11:51]} {[%emt 00:00:09]}
9. Re1 {[%clk 00:10:15]} {[%emt 00:00:51]} O-O {[%clk 00:11:50]} {[%emt
00:00:05]} 10. Bf4 {[%clk 00:08:36]} {[%emt 00:01:42]} Re8 {[%clk 00:11:44]}
{[%emt 00:00:07]} 11. e5 {[%clk 00:07:28]} {[%emt 00:01:13]} dxe5 {[%clk
00:10:46]} {[%emt 00:01:05]} 12. Qxd8 {[%clk 00:06:41]} {[%emt 00:00:45]} Rxd8
{[%clk 00:10:45]} {[%emt 00:00:04]} 13. Bxe5 {[%clk 00:06:13]} {[%emt
00:00:31]} Rd7 {[%clk 00:10:14]} {[%emt 00:00:31]} 14. Bxf6 {[%clk 00:05:31]}
{[%emt 00:00:48]} gxf6 {[%clk 00:10:11]} {[%emt 00:00:06]} 15. Nd5 {[%clk
00:05:16]} {[%emt 00:00:18]} Kg7 {[%emt 00:01:10]} 16. Nh4 {[%emt 00:00:04]} b5
{[%clk 00:09:33]} {[%emt 00:00:16]} 17. Bxb5 {[%clk 00:04:02]} {[%emt
00:00:34]} Bb7 {[%emt 00:00:12]} 18. Ne3 {[%clk 00:02:47]} {[%emt 00:01:20]}
Bb4 {[%clk 00:09:20]} {[%emt 00:00:06]} 19. Red1 {[%clk 00:02:37]} {[%emt
00:00:15]} Rxd1+ {[%clk 00:09:20]} 20. Rxd1 {[%clk 00:02:39]} Bc5 {[%clk
00:08:54]} {[%emt 00:00:29]} 21. Nef5+ {[%clk 00:02:31]} {[%emt 00:00:11]} Kh7
{[%clk 00:08:40]} {[%emt 00:00:16]} 22. Bxc6 {[%clk 00:02:28]} {[%emt
00:00:08]} Bxc6 {[%clk 00:08:39]} {[%emt 00:00:03]} 23. Rc1 {[%emt 00:01:13]}
Bd6 {[%emt 00:00:07]} 24. Rxc6 {[%emt 00:00:19]} Be5 {[%clk 00:07:13]} {[%emt
00:00:02]} 25. Rc2 {[%clk 00:01:59]} {[%emt 00:00:30]} Rd8 {[%clk 00:07:12]}
{[%emt 00:00:03]} 26. g3 {[%clk 00:01:53]} {[%emt 00:00:10]} Rd1+ {[%clk
00:07:13]} {[%emt 00:00:02]} 27. Kg2 {[%clk 00:01:55]} {[%emt 00:00:02]} Rd7
{[%clk 00:06:44]} {[%emt 00:00:32]} 28. Nf3 {[%clk 00:01:49]} {[%emt 00:00:09]}
Bd6 {[%clk 00:06:41]} {[%emt 00:00:06]} 29. Nxd6 {[%clk 00:01:50]} {[%emt
00:00:01]} Rxd6 {[%clk 00:06:43]} {[%emt 00:00:04]} 30. Rxc7 {[%emt 00:00:01]}
Ra6 31. a3 {[%clk 00:01:50]} {[%emt 00:00:04]} Kg7 {[%clk 00:06:45]} {[%emt
00:00:02]} 32. Nd4 {[%clk 00:01:46]} {[%emt 00:00:06]} Ra5 {[%clk 00:06:32]}
{[%emt 00:00:16]} 33. Nb3 {[%clk 00:01:38]} {[%emt 00:00:11]} Rb5 {[%clk
00:06:29]} {[%emt 00:00:06]} 34. Rc3 {[%emt 00:00:02]} a5 {[%clk 00:06:29]}
{[%emt 00:00:03]} 35. a4 {[%clk 00:01:14]} {[%emt 00:00:28]} Rb4 {[%clk
00:06:27]} {[%emt 00:00:05]} 36. Nxa5 {[%clk 00:01:16]} {[%emt 00:00:01]} Rxa4
{[%clk 00:06:22]} {[%emt 00:00:07]} 37. Ra3 {[%clk 00:01:15]} {[%emt 00:00:05]}
Rb4 {[%clk 00:06:22]} {[%emt 00:00:03]} 38. b3 {[%clk 00:01:15]} {[%emt
00:00:04]} Kf8 {[%emt 00:00:03]} 39. Nc4 {[%clk 00:01:14]} {[%emt 00:00:03]}
Ke7 {[%clk 00:06:18]} {[%emt 00:00:05]} 40. Ra7+ {[%clk 00:01:00]} {[%emt
00:00:18]} Kf8 {[%clk 00:06:16]} {[%emt 00:00:06]} 41. Nd6 {[%clk 00:00:55]}
{[%emt 00:00:09]} Rxb3 {[%clk 00:06:11]} {[%emt 00:00:08]} 42. Rxf7+ {[%clk
00:00:55]} {[%emt 00:00:03]} Kg8 {[%emt 00:00:02]} 43. Rxf6 {[%emt 00:00:07]}
Rb6 {[%clk 00:06:10]} 44. Ne4 {[%clk 00:00:56]} {[%emt 00:00:03]} Rxf6 {[%clk
00:06:09]} {[%emt 00:00:03]} 45. Nxf6+ {[%clk 00:00:59]} Kf7 {[%clk 00:06:11]}
{[%emt 00:00:02]} 46. Ne4 {[%clk 00:01:01]} Ke6 {[%clk 00:06:12]} {[%emt
00:00:02]} 47. f4 {[%emt 00:00:02]} Kf5 {[%clk 00:06:13]} {[%emt 00:00:02]} 48.
Kf3 {[%clk 00:01:05]} h5 {[%clk 00:06:13]} {[%emt 00:00:03]} 49. g4+ {[%clk
00:01:07]} {[%emt 00:00:01]} hxg4+ {[%clk 00:06:14]} {[%emt 00:00:02]} 50.
hxg4+ {[%clk 00:01:09]} Kg6 {[%clk 00:06:15]} {[%emt 00:00:01]} 51. Ng3 {[%clk
00:01:10]} {[%emt 00:00:02]} Kh6 {[%clk 00:06:13]} {[%emt 00:00:05]} 52. Ke4
{[%clk 00:01:12]} {[%emt 00:00:01]} Kg6 {[%clk 00:06:15]} {[%emt 00:00:02]} 53.
Ke5 {[%emt 00:00:01]} Kf7 {[%clk 00:06:17]} 54. Kf5 {[%emt 00:00:01]} Kf8
{[%clk 00:06:19]} 55. Kf6 {[%clk 00:01:19]} Ke8 {[%clk 00:06:20]} 56. f5 {[%clk
00:01:21]} {[%emt 00:00:02]} Kf8 {[%clk 00:06:22]} 57. g5 {[%clk 00:01:23]} Ke8
{[%clk 00:06:24]} {[%emt 00:00:01]} 58. Kg7 {[%clk 00:01:25]} Ke7 {[%clk
00:06:25]} {[%emt 00:00:01]} 59. f6+ {[%clk 00:01:28]} Ke6 {[%clk 00:06:27]}
{[%emt 00:00:02]} 60. f7 {[%clk 00:01:28]} {[%emt 00:00:03]} Ke5 {[%clk
00:06:29]} {[%emt 00:00:02]} 61. f8=Q {[%clk 00:01:28]} {[%emt 00:00:04]} 1-0

[Event "Orlicka sachovnice 2023"]
[Site "Usti nad Orlici, Czech Republic"]
[Date "2023.05.06"]
[Round "6.1"]
[White "Stary, Vojtech"]
[Black "Smehlik, Vojtech"]
[Result "1-0"]
[TimeControl "12 min + 3 s"]
[WhiteElo "1604"]
[BlackElo "1369"]

1. d4 {[%emt 00:00:09]} d5 {[%clk 00:11:58]} {[%emt 00:00:02]} 2. c4 {[%clk
00:12:05]} Nc6 {[%clk 00:11:44]} {[%emt 00:00:20]} 3. Nc3 dxc4 {[%emt
00:00:24]} 4. e3 {[%emt 00:00:08]} Nf6 {[%emt 00:00:03]} 5. Bxc4 {[%emt
00:00:07]} Bf5 {[%emt 00:00:08]} 6. Nge2 {[%emt 00:00:06]} e6 7. O-O {[%emt
00:00:05]} Bd6 {[%emt 00:00:10]} 8. f3 {[%emt 00:00:07]} e5 {[%emt 00:00:18]} 9.
d5 {[%clk 00:11:11]} {[%emt 00:00:18]} Na5 {[%clk 00:10:56]} {[%emt 00:00:27]}
10. Qa4+ {[%emt 00:00:44]} Bd7 {[%emt 00:00:11]} 11. Qxa5 {[%clk 00:10:32]}
{[%emt 00:00:26]} O-O {[%clk 00:10:22]} {[%emt 00:00:04]} 12. e4 {[%clk
00:10:00]} {[%emt 00:00:34]} b6 {[%clk 00:10:16]} {[%emt 00:00:09]} 13. Qa6
{[%clk 00:10:01]} {[%emt 00:00:02]} Bc5+ {[%clk 00:10:05]} {[%emt 00:00:15]} 14.
Kh1 {[%emt 00:01:30]} Qe8 {[%emt 00:00:14]} 15. Bb5 {[%emt 00:00:29]} Bxb5
{[%clk 00:08:17]} {[%emt 00:00:12]} 16. Qxb5 {[%clk 00:09:35]} {[%emt
00:00:03]} Qxb5 {[%clk 00:08:19]} {[%emt 00:00:01]} 17. Nxb5 {[%clk 00:09:37]}
{[%emt 00:00:01]} Rfc8 {[%clk 00:08:13]} {[%emt 00:00:10]} 18. a3 {[%clk
00:09:32]} {[%emt 00:00:08]} a6 {[%clk 00:08:13]} {[%emt 00:00:02]} 19. Nbc3
{[%clk 00:09:31]} {[%emt 00:00:04]} b5 {[%clk 00:07:58]} {[%emt 00:00:19]} 20.
b4 {[%clk 00:09:31]} {[%emt 00:00:03]} Ba7 {[%clk 00:07:58]} {[%emt 00:00:03]}
21. Bg5 {[%clk 00:09:28]} {[%emt 00:00:05]} Nd7 {[%clk 00:07:23]} {[%emt
00:00:38]} 22. Ng3 {[%clk 00:09:15]} {[%emt 00:00:17]} h6 {[%clk 00:07:20]}
{[%emt 00:00:06]} 23. Bd2 {[%emt 00:00:16]} c5 {[%clk 00:06:53]} {[%emt
00:00:17]} 24. Nf5 {[%clk 00:08:52]} {[%emt 00:00:27]} Kf8 {[%clk 00:06:27]}
{[%emt 00:00:28]} 25. Rac1 {[%clk 00:08:30]} {[%emt 00:00:24]} c4 {[%clk
00:06:18]} {[%emt 00:00:12]} 26. Be3 {[%emt 00:00:16]} Bxe3 {[%clk 00:05:48]}
{[%emt 00:00:24]} 27. Nxe3 {[%clk 00:08:28]} {[%emt 00:00:01]} g6 {[%clk
00:05:46]} {[%emt 00:00:05]} 28. a4 {[%emt 00:00:27]} bxa4 {[%clk 00:05:27]}
{[%emt 00:00:11]} 29. Nxa4 {[%clk 00:08:17]} {[%emt 00:00:01]} Rab8 {[%clk
00:05:28]} {[%emt 00:00:02]} 30. Rxc4 {[%clk 00:08:04]} {[%emt 00:00:17]} Rxc4
{[%clk 00:05:19]} {[%emt 00:00:12]} 31. Nxc4 {[%clk 00:08:05]} Rxb4 {[%emt
00:00:05]} 32. Ncb2 {[%emt 00:00:06]} Nb6 {[%clk 00:05:04]} {[%emt 00:00:17]}
33. Nxb6 {[%clk 00:07:58]} {[%emt 00:00:07]} Rxb6 {[%clk 00:05:05]} {[%emt
00:00:02]} 34. Nc4 {[%clk 00:07:59]} {[%emt 00:00:02]} Rb4 {[%clk 00:04:58]}
{[%emt 00:00:10]} 35. Nxe5 {[%clk 00:07:59]} {[%emt 00:00:03]} a5 {[%clk
00:04:55]} {[%emt 00:00:06]} 36. Nc6 {[%clk 00:07:59]} {[%emt 00:00:03]} Rb5
{[%emt 00:00:10]} 37. Ra1 {[%clk 00:07:56]} a4 {[%clk 00:04:53]} {[%emt
00:00:04]} 38. Kg1 {[%clk 00:07:56]} {[%emt 00:00:03]} 1-0